Cogmind - Beta 10.2 @@@ ROGUE MODE // 2021.02.04 @ 16:03:21 Player: Demise Result: Destroyed by G-67 Veteran with Electrolaser Performance ------------- Evolutions (6) 3000 Regions Visited (20) 4000 Robots Destroyed (297) 1485 Value Destroyed (11174) 11174 Prototype IDs (39) 780 Alien Tech Used (0) 0 Bonus (4944) 4944 TOTAL SCORE: 25383 Bonus ------- High Alert Combat Kills 2573 Follower Combat Kills 3235 Entered Garrisons 400 Aligned with FarCom 300 Met Imprinter 300 Built Enhanced Grunts 300 Friendly Fire -2164 Cogmind --------- Core Integrity 0/1150 Matter 149/300 Energy 50/350 System Corruption 6% Temperature Cool (12) Movement Core (1500) Ox29 Location -4/Factory Parts ------- > --- POWER (2) -------- Quantum Reactor > --- PROPULSION (4) --- (None) > --- UTILITY (11) ----- High-capacity Storage Unit High-capacity Storage Unit Structural Scanner Advanced Sensor Array Advanced Signal Interpreter Advanced Targeting Computer Improved Transmission Jammer Cloaking Device Improved System Shield > --- WEAPON (2) ------- (None) > --- INVENTORY (20) --- Superbattery (2000) Improved System Backup Module Long-range Tractor Beam Hacking Drone Bay (1/1) Advanced Variable Charge Gun Heavy Shock Bomb Launcher Heavy Rocket Launcher Precision Grenade Launcher Mini Smartbomb Launcher Advanced Datajack Molecular Scythe Self-destruct Interrupter (50) Self-destruct Interrupter (26) Peak State ------------ > --- POWER ------------ Quantum Reactor Quantum Reactor > --- PROPULSION ------- Centrium Heavy Treads Centrium Heavy Treads > --- UTILITY ---------- High-capacity Storage Unit High-capacity Storage Unit High-capacity Storage Unit Advanced Signal Interpreter Improved Particle Charger Hardened Heavy Armor Plating Centrium Medium Armor Plating Centrium Medium Armor Plating Improved System Shield > --- WEAPON ----------- Advanced Variable Charge Gun Mini Smartbomb Launcher > --- INVENTORY -------- Quantum Reactor Quantum Reactor Superbattery Structural Scanner Advanced Sensor Array Advanced Targeting Computer Improved Transmission Jammer Cloaking Device Improved System Shield Improved System Shield Advanced System Shield Improved System Backup Module Long-range Tractor Beam Advanced Field Recycling Unit Decoy Drone Bay Hacking Drone Bay Advanced Variable Charge Gun Heavy Shock Bomb Launcher Heavy Rocket Launcher Precision Grenade Launcher Micro-nuke Launcher Advanced Datajack Phasing Sabre Molecular Scythe Self-destruct Interrupter Self-destruct Interrupter [Rating: 126] Favorites ----------- Power Enhanced Nuclear Core Engine Ion Engine Power Core Enhanced Nuclear Core Reactor Quantum Reactor Propulsion Armored Treads Treads Armored Treads Flight Unit Cooled VTOL Module Utility High-capacity Storage Unit Device Improved Shield Generator Storage High-capacity Storage Unit Processor Advanced Signal Interpreter Hackware Hacking Suite Protection Improved Light Armor Plating Weapon Flak Gun Energy Gun EM Pulse Gun Energy Cannon HERF Cannon Ballistic Gun Flak Gun Ballistic Cannon Flak Cannon Launcher Heavy Shock Bomb Launcher Special Weapon Mining Laser Slashing Weapon Axe Build | -11 -10 -10 -10 -9 -8 -7 -7 -7 -7 -7 -7 -6 -6 -5 -5 -5 -5 -5 -5 -4 ------- Run | Scr Mat Min Exi Min Mat Fac Gar Fac Low Low Zio Pro Fac Fac Ext Cet Arc Hub Gar Fac Slots Evolved 12 | . . . . . 4 2 . . . . . . 2 2 . . . . . 2 Power 1 | . . . . . . . . . . . . . . . . . . . . 1 Propulsion 2 | . . . . . . . . . . . . . 2 . . . . . . . Utility 9 | . . . . . 4 2 . . . . . . . 2 . . . . . 1 Weapon . | . . . . . . . . . . . . . . . . . . . . . Parts Attached 311 | 7 10 11 3 . 23 38 10 54 16 6 3 5 36 31 16 10 3 . 1 28 Power 18 | 1 . 3 . . 2 1 . . . . . . 2 4 1 1 . . . 3 Engine 6 | 1 . 3 . . 2 . . . . . . . . . . . . . . . Core 8 | . . . . . . 1 . . . . . . 2 4 1 . . . . . Reactor 4 | . . . . . . . . . . . . . . . . 1 . . . 3 Propulsion 25 | 2 1 . 2 . 3 4 . 3 . . . . 6 1 1 2 . . . . Treads 24 | 2 1 . 2 . 3 3 . 3 . . . . 6 1 1 2 . . . . Leg . | . . . . . . . . . . . . . . . . . . . . . Wheel . | . . . . . . . . . . . . . . . . . . . . . Hover . | . . . . . . . . . . . . . . . . . . . . . Flight 1 | . . . . . . 1 . . . . . . . . . . . . . . Utility 132 | 2 3 . 1 . 9 27 4 19 7 1 2 3 4 15 9 2 3 . 1 20 Device 72 | . . . . . 5 15 3 10 5 . . 2 1 11 6 . 2 . . 12 Storage 16 | 2 3 . 1 . 1 . . 2 . . 1 . . 1 3 1 . . 1 . Processor 4 | . . . . . . 2 . 1 . . . . . . . . . . . 1 Hackware 18 | . . . . . . 4 . 4 . . . . 3 3 . . . . . 4 Protection 22 | . . . . . 3 6 1 2 2 1 1 1 . . . 1 1 . . 3 Artifact . | . . . . . . . . . . . . . . . . . . . . . Weapon 136 | 2 6 8 . . 9 6 6 32 9 5 1 2 24 11 5 5 . . . 5 Energy Gun 11 | 1 . 1 . . 1 . . 1 . . . . . 3 . 3 . . . 1 Energy Cannon 5 | . . . . . . . . . . . . . . 2 3 . . . . . Ballistic Gun 54 | 1 4 5 . . 6 3 . 15 4 1 . 1 10 3 . 1 . . . . Ballistic Cannon 10 | . . . . . . 1 2 3 2 . . . 2 . . . . . . . Launcher 29 | . 1 2 . . . 1 3 6 2 2 . 1 5 1 2 1 . . . 2 Special Weapon 3 | . 1 . . . 1 . . 1 . . . . . . . . . . . . Impact Weapon . | . . . . . . . . . . . . . . . . . . . . . Slashing Weapon 24 | . . . . . 1 1 1 6 1 2 1 . 7 2 . . . . . 2 Piercing Weapon . | . . . . . . . . . . . . . . . . . . . . . Special Melee Weapon . | . . . . . . . . . . . . . . . . . . . . . Unidentified Prototypes 14 | . . . . . 2 2 . 2 . . . . 2 2 . 4 . . . . Parts Lost 39 | . . 2 . . 1 . 1 5 . . . . 4 3 2 1 1 . . 19 Power 7 | . . 2 . . . . . . . . . . 1 1 . . . . . 3 Propulsion 8 | . . . . . . . . 2 . . . . 2 . 1 1 . . . 2 Utility 15 | . . . . . 1 . 1 1 . . . . 1 . . . 1 . . 10 Weapon 9 | . . . . . . . . 2 . . . . . 2 1 . . . . 4 Highest Loss Streak 13 | . . 1 . . 1 . 1 3 . . . . 2 3 1 1 1 . . 13 Average Slot Usage (%) 88 | . 99 98 95 85 87 88 91 91 92 92 92 92 82 80 77 81 79 82 82 71 Engine 2 | . 14 12 14 14 9 2 . . . . . . . . . . . . . . Core 4 | . . . . . . 4 7 7 7 7 7 7 5 4 5 . . . . . Treads 16 | . 27 28 28 28 18 15 15 14 15 15 15 15 17 11 11 10 11 11 11 9 Device 7 | . . . . . 14 9 9 5 12 14 7 15 . 5 7 11 12 17 12 11 Storage 16 | . 28 28 24 14 16 15 15 15 15 15 15 15 13 10 13 17 17 17 21 16 Processor 4 | . . . . . . 5 7 7 7 7 7 7 6 5 5 5 5 5 5 5 Hackware 13 | . . . . . . 9 17 22 16 15 10 7 25 27 19 11 5 . . 4 Protection 3 | . . . . . 11 8 2 2 1 . 11 7 . . . 4 7 11 11 9 Energy Gun 1 | . 4 3 14 14 3 . . . . . . . . 4 . . . . . 1 Ballistic Gun 9 | . 22 22 14 14 14 13 7 11 9 9 8 10 10 2 . . . . . . Slashing Weapon 1 | . . . . . . . . 2 4 3 5 3 1 1 . . . . . 2 Naked Turns . | . . . . . . . . . . . . . . . . . . . . . Heaviest Build 185 | 16 72 74 86 86 138 141 142 141 141 136 142 138 136 140 155 150 165 165 168 185 Greatest Support 160 | 40 40 40 40 40 42 42 40 42 40 40 40 40 100 130 140 160 160 160 160 160 Greatest Overweight (x) 46 | . 1 1 2 2 3 6 46 42 42 3 3 3 3 1 46 2 1 1 1 34 Average Overweight (x) 2 | . . 1 1 2 2 3 6 3 4 3 3 3 1 . 1 . . 1 1 . Largest Inventory Capacity 32 | 8 20 20 24 24 32 32 32 32 32 32 32 32 32 32 32 28 28 28 28 28 Average Capacity 29 | 5 17 20 20 24 30 32 32 31 32 32 31 32 32 31 31 28 28 28 28 27 Most Carried 32 | 4 20 20 24 24 32 32 32 32 32 32 32 32 32 32 32 28 28 28 28 28 Average Carried 29 | 2 14 19 19 24 30 31 31 31 31 32 31 32 31 30 31 27 27 28 28 26 Final Capacity 32 | 8 20 20 24 24 32 32 32 32 32 32 32 32 32 32 28 28 28 28 28 20 Final Carried 32 | 3 20 20 24 24 32 32 31 32 32 32 32 32 30 32 28 27 28 28 28 13 Class Distribution -------------------- 66% | Hauler-Mutant 27% | Hacker-Mutant 3% | Commander-Mutant Dominant Class ---------------- Hauler-Mutant | -10/Materials Hauler-Mutant | -10/Mines Hauler-Mutant | -10/Exiles Hauler-Mutant | -9/Mines Hauler-Mutant | -8/Materials Hauler-Mutant | -7/Factory Hauler-Mutant | -7/Garrison Hacker-Mutant | -7/Factory Hauler-Mutant | -7/Lower Caves Hauler-Mutant | -7/Lower Caves Hauler-Mutant | -7/Zion Hauler-Mutant | -6/Proximity Caves Hacker-Mutant | -6/Factory Hacker-Mutant | -5/Factory Commander-Mutant | -5/Extension Hauler-Mutant | -5/Cetus Hauler-Mutant | -5/Archives Hauler-Mutant | -5/Hub_04(d) Hauler-Mutant | -5/Garrison Hauler-Mutant | -4/Factory Resources | -11 -10 -10 -10 -9 -8 -7 -7 -7 -7 -7 -7 -6 -6 -5 -5 -5 -5 -5 -5 -4 ----------- Run | Scr Mat Min Exi Min Mat Fac Gar Fac Low Low Zio Pro Fac Fac Ext Cet Arc Hub Gar Fac Matter Collected 7399 | 360 443 342 30 . 365 857 399 1212 504 283 40 120 1020 577 267 123 30 . 192 235 Remotely . | . . . . . . . . . . . . . . . . . . . . . Salvage Created 11885 | 152 555 248 . . 1015 971 236 1589 306 479 . 254 1733 570 1114 505 351 . 851 956 Parts 564 | 7 36 13 . . 60 54 11 94 11 9 . 6 82 29 44 24 13 4 30 37 Haulers Intercepted 12 | . 2 . . . 2 3 . 3 . . . . 2 . . . . . . . Recyclers Shooed 4 | . 1 . . . . . . . . . . . 1 . 2 . . . . . Parts Field Recycled 5 | . . . . . . . . . . . . . . . 5 . . . . . Retrieved Matter 125 | . . . . . . . . . . . . . . . 125 . . . . . Parts Self-Destructed 37 | . . . . . . . . . 17 7 1 12 . . . . . . . . Prevented . | . . . . . . . . . . . . . . . . . . . . . Kills | -11 -10 -10 -10 -9 -8 -7 -7 -7 -7 -7 -7 -6 -6 -5 -5 -5 -5 -5 -5 -4 ------- Run | Scr Mat Min Exi Min Mat Fac Gar Fac Low Low Zio Pro Fac Fac Ext Cet Arc Hub Gar Fac Combat Hostiles Destroyed 209 | . 8 13 . . 15 16 11 33 5 8 . 4 32 9 16 10 . . 16 13 Melee 2 | . . . . . . . . 1 . . . . . . . . . . . 1 Guns 86 | . 6 9 . . 15 13 1 12 4 1 . . 17 8 . . . . . . Cannons 13 | . . . . . . . 3 3 . . . . . 1 2 4 . . . . AOE 96 | . 2 4 . . . 3 7 17 1 7 . 4 15 . 9 2 . . 13 12 Classes Destroyed 21 | 3 6 1 . . 1 1 1 3 3 . . . 1 . 1 . . . . . Worker 18 | 2 . 1 . . 2 1 . 2 . . . . 10 . . . . . . . Builder 7 | . 2 . . . . . . 2 . . . . 1 . 1 . . 1 . . Tunneler 4 | 2 . . . . . . . 1 . . . . . . . . . . . 1 Hauler 12 | . 2 . . . 2 3 . 3 . . . . 2 . . . . . . . Recycler 13 | 1 2 . . . 1 1 . 2 . . . . 1 . 2 . . . . 3 Minesweeper 1 | . . . . . . . . . 1 . . . . . . . . . . . Mechanic 1 | . . . . . . . . 1 . . . . . . . . . . . . Operator 16 | . 2 . . . . 1 . 2 . . . . 1 . 1 . 9 . . . Watcher 14 | . 2 . . . 3 2 . 1 . . . . 3 . 2 . . . . 1 Swarmer 52 | . 4 5 . . 6 . 4 2 . . . . 7 . 9 5 . . 6 4 Grunt 90 | . 4 3 . . 5 7 5 20 2 7 . 2 14 . 3 2 . . 10 6 Brawler 3 | . . . . . . . 1 1 . . . . 1 . . . . . . . Duelist 4 | . . . . . . . . 1 . . . 2 1 . . . . . . . Protector 1 | . . . . . . . . . . . . . 1 . . . . . . . Sentry 16 | . . . . . 6 2 1 1 1 . . . 1 2 2 . . . . . Demolisher 1 | . . . . . . . . . . . . . . . 1 . . . . . Hunter 7 | . . . . . . . . 1 . 1 . . 1 . 1 . . . . 3 Programmer 28 | . . . . . . 7 . 7 1 . . . 6 7 . . . . . . Behemoth 1 | . . . . . . . . . 1 . . . . . . . . . . . Cetus Guard 3 | . . . . . . . . . . . . . . . . 3 . . . . Enhanced Grunt 1 | . . . . . . . . . . . . . . . . . . . . 1 Decomposer 2 | . . . . . . . . . 2 . . . . . . . . . . . Packrat 2 | . . . . . . . . . . 2 . . . . . . . . . . Samaritan 1 | . . . . . . . . . 1 . . . . . . . . . . . Assembled 5 | . . 5 . . . . . . . . . . . . . . . . . . Thug 1 | . . . . . . . . . . . . . 1 . . . . . . . Savage 2 | . . . . . . . . . . . . 2 . . . . . . . . Guerrilla 1 | . . . . . . . . . . . . . 1 . . . . . . . Best Kill Streak 17 | 2 5 3 . . 4 5 6 8 2 4 . 4 17 2 5 3 3 1 9 8 Combat Bots Only 9 | . 3 2 . . 3 4 6 5 2 4 . 4 8 2 5 3 . . 9 5 Max Kills in Single Turn 7 | 2 4 2 . . 2 5 3 5 1 2 . 2 7 1 3 1 1 1 3 4 Gunslinging . | . . . . . . . . . . . . . . . . . . . . . Exploded 4 | . 2 1 . . . 3 3 4 1 2 . 1 3 . 3 1 . . 3 2 Melee 1 | . . . . . . . . 1 . . . . . . . . . . . 1 Uniques/NPCs Destroyed . | . . . . . . . . . . . . . . . . . . . . . Combat | -11 -10 -10 -10 -9 -8 -7 -7 -7 -7 -7 -7 -6 -6 -5 -5 -5 -5 -5 -5 -4 -------- Run | Scr Mat Min Exi Min Mat Fac Gar Fac Low Low Zio Pro Fac Fac Ext Cet Arc Hub Gar Fac Damage Taken 15469 | . 312 533 . . 510 1025 270 1559 188 249 . 128 1835 1428 1017 165 231 . 215 5804 Core 2150 | . 84 95 . . 45 80 20 163 16 26 . 14 125 81 158 26 28 . 38 1151 Absorbed by Shields 1043 | . . . . . 126 262 80 148 67 92 . 50 . . 56 159 . . 3 . Reduced by Siege Mode 68 | . . . . . . . . . . . . . 5 . 59 . . . 4 . Core Remaining (%) 70 | 100 . . . 28 91 . . . . . . 54 85 . . . . . 66 . Volleys Fired 706 | 15 48 52 . 1 84 53 24 66 25 18 . 5 68 58 68 31 33 2 26 29 Largest 2 | 2 2 2 . 1 2 2 2 2 2 2 . 1 2 2 2 1 1 1 1 1 Hottest 240 | 60 120 60 . 40 120 72 72 72 78 56 . 39 67 188 186 88 88 88 46 240 Shots Fired 1034 | 30 90 94 . 1 127 106 36 112 32 23 . 5 104 82 72 31 33 2 26 28 Gun 705 | 30 86 87 . 1 125 101 13 83 11 11 . . 72 75 . . . . . 10 Cannon 175 | . . . . . . 4 13 11 14 . . . 6 7 58 27 33 2 . . Launcher 148 | . 1 7 . . . 1 10 17 7 12 . 5 26 . 14 4 . . 26 18 Special 6 | . 3 . . . 2 . . 1 . . . . . . . . . . . . Kinetic 600 | 15 72 79 . . 85 105 26 94 25 11 . . 78 10 . . . . . . Thermal 87 | . 3 . . . 2 . . . . . . . . 65 7 . . . . 10 Explosive 97 | . 1 7 . . . . 10 17 7 12 . 5 25 . . . . . . 13 Electromagnetic 249 | 15 14 8 . 1 40 1 . . . . . . 1 7 65 31 33 2 26 5 Robot Hit Streak 19 | 4 8 5 . . 17 3 10 19 5 8 . 1 10 11 9 15 7 1 3 15 Robot Miss Streak 10 | 3 4 2 . . 5 8 3 8 1 3 . 4 10 4 3 1 3 1 . 2 Penetration Max . | . . . . . . . . . . . . . . . . . . . . . Secondary Targets 5 | . 2 2 . . . . . . . . . . . 1 . . . . . . Max Gunslinging Chain 1 | . 1 1 . . . . . . . . . . . 1 . . . . . . Capacitor 72 | . . . . . . . . . . . . . . . 33 27 12 . . . Shots Hit Robots 461 | 16 52 52 . . 81 13 10 20 12 19 . 1 33 41 43 22 24 1 2 19 Core Hits 746 | 9 28 25 . . 42 75 33 139 21 20 . 18 170 27 35 11 10 . 38 45 Critical Hits 3 | . 1 . . . . . . . . . . . . . 1 . 1 . . . Critical Kills . | . . . . . . . . . . . . . . . . . . . . . Critical Parts Destroyed 3 | . 1 . . . . . . . . . . . . . 1 . 1 . . . Melee Attacks 123 | . . . . . 1 3 1 21 7 21 25 3 23 7 . . . . . 11 Impact . | . . . . . . . . . . . . . . . . . . . . . Slashing 123 | . . . . . 1 3 1 21 7 21 25 3 23 7 . . . . . 11 Piercing . | . . . . . . . . . . . . . . . . . . . . . Sneak Attacks 12 | . . . . . . . . 1 4 3 . . 4 . . . . . . . Combat Hostiles . | . . . . . . . . . . . . . . . . . . . . . Follow-up Attacks . | . . . . . . . . . . . . . . . . . . . . . Damage Inflicted 34616 | 191 742 775 . . 1533 3031 1399 4609 1201 1922 . 1151 5667 1868 2599 935 1209 83 1642 4059 Guns 10797 | 191 564 555 . . 1207 1964 291 1836 300 215 . . 1790 1660 . . . . . 224 Cannons 4354 | . . . . . . 43 141 250 . . . . . 208 1598 841 1209 64 . . Explosions 17405 | . 178 220 . . 314 1024 967 2320 376 1031 . 1151 3371 . 1001 94 . . 1642 3716 Melee 1934 | . . . . . . . . 157 525 676 . . 457 . . . . . . 119 Ramming 126 | . . . . . 12 . . 46 . . . . 49 . . . . 19 . . Kinetic 8876 | 61 440 511 . . 713 2007 432 2086 300 215 . . 1790 321 . . . . . . Thermal 5218 | . . . . . 314 992 . 217 . . . . 527 1339 301 . . . 110 1418 Explosive 10942 | . 178 220 . . . . 967 2103 376 1031 . 1151 2744 . . . . . . 2172 Electromagnetic 7520 | 130 124 44 . . 494 32 . . . . . . 100 208 2298 935 1209 64 1532 350 Impact . | . . . . . . . . . . . . . . . . . . . . . Slashing 1934 | . . . . . . . . 157 525 676 . . 457 . . . . . . 119 Piercing . | . . . . . . . . . . . . . . . . . . . . . Highest Corruption 6 | . 1 1 1 1 . 5 5 4 4 1 1 . 1 4 2 . . . . 6 Average Corruption 1 | . 1 1 1 1 . 2 3 1 1 1 1 . 1 2 1 . . . . 3 Corruption Purged 19 | . . . . . . . 5 3 4 . . . . 5 2 . . . . . Effects 151 | . 2 9 2 4 . 24 17 36 24 8 1 . . 17 1 . . . . 6 Message Errors 55 | . . 1 . 3 . 9 4 11 12 3 . . . 8 1 . . . . 3 Matter Fused 15 | . . . . . . 4 2 3 2 . . . . 3 . . . . . 1 Heat Flow Errors 12 | . . . . . . 3 2 3 3 . . . . 1 . . . . . . Energy Discharges 31 | . 1 3 1 1 . 2 3 10 4 2 1 . . 3 . . . . . . Data Loss (minor) 25 | . 1 4 1 . . 4 3 7 2 2 . . . 1 . . . . . . Misfires 1 | . . . . . . . 1 . . . . . . . . . . . . . Targeting Errors 9 | . . 1 . . . 2 . 2 1 1 . . . 1 . . . . . 1 Weapon Failures 3 | . . . . . . . 2 . . . . . . . . . . . . 1 Overload Shots 3 | . . . . . . . . . . . . . . . . . . . . 3 Overflow Damage 2231 | . . . . . . 400 43 208 301 344 . 76 191 16 52 27 122 29 . 422 Projectiles 241 | . . . . . . . . . . . . . . 16 47 27 122 29 . . Explosions 1156 | . . . . . . 400 43 81 . 8 . 76 121 . 5 . . . . 422 Melee 834 | . . . . . . . . 127 301 336 . . 70 . . . . . . . Knockbacks 7 | . . . . . . . 2 5 . . . . . . . . . . . . Impact . | . . . . . . . . . . . . . . . . . . . . . Kinetic 7 | . . . . . . . 2 5 . . . . . . . . . . . . Secondary . | . . . . . . . . . . . . . . . . . . . . . Self-Inflicted Damage 649 | . . . . . 50 331 . 66 . 40 . 50 . . . . . . 12 100 Shots 13 | . . . . . 1 4 . 3 . 1 . 2 . . . . . . 1 1 Rammed 9 | . . . . . 1 . . 3 . . . . 5 . . . . . . . Targets Rammed 12 | . . . . . 1 . . 5 . . . . 5 . . . . 1 . . Kicked . | . . . . . . . . . . . . . . . . . . . . . Crushed 3 | . . . . . . . . 2 . . . . . . . . . 1 . . Highest Temperature 429 | 20 40 28 . . 40 270 252 253 222 . . 1 22 328 250 243 164 . . 429 Average Temperature 66 | 10 14 9 . . 8 42 61 48 91 . . 1 9 111 56 90 76 . . 194 Received Heat Transfer 3024 | . 72 192 . . 159 154 91 459 24 72 . 24 429 90 126 16 18 . 54 1044 Effects 7 | . . . . . . . . . . . . . . . . . . . . 7 Shutdowns 3 | . . . . . . . . . . . . . . . . . . . . 3 Interference 3 | . . . . . . . . . . . . . . . . . . . . 3 Short Circuit 1 | . . . . . . . . . . . . . . . . . . . . 1 Siege Activations 11 | . . . . . . . . . . . . . 2 . 5 1 1 1 1 . Total Turns 196 | . . . . . . . . . . . . . 19 . 83 4 4 30 56 . Longest Duration 56 | . . . . . . . . . . . . . 17 . 36 4 4 30 56 . Robots Corrupted 15 | . . . . . . . . . . . . . . . 5 4 3 . 3 . Combat Hostiles 12 | . . . . . . . . . . . . . . . 5 4 . . 3 . Parts Fried 50 | . . . . . . . . . . . . . . 1 17 3 19 . 7 3 Impact Corruptions . | . . . . . . . . . . . . . . . . . . . . . Robots Melted . | . . . . . . . . . . . . . . . . . . . . . Combat Hostiles . | . . . . . . . . . . . . . . . . . . . . . Parts Melted 5 | . . . . . . 1 . . . . . . . 3 . 1 . . . . Heat Transferred 4117 | . . . . . 350 550 . 150 . . . . 350 1369 300 . . . 100 948 Parts Sabotaged . | . . . . . . . . . . . . . . . . . . . . . Parts Stolen . | . . . . . . . . . . . . . . . . . . . . . Parts Stripped . | . . . . . . . . . . . . . . . . . . . . . Power Chain Reactions 12 | . . . . . 3 . . . . . . . . . 5 . . . 3 1 Missiles Intercepted . | . . . . . . . . . . . . . . . . . . . . . Alert | -11 -10 -10 -10 -9 -8 -7 -7 -7 -7 -7 -7 -6 -6 -5 -5 -5 -5 -5 -5 -4 ------- Run | Scr Mat Min Exi Min Mat Fac Gar Fac Low Low Zio Pro Fac Fac Ext Cet Arc Hub Gar Fac Peak Influence 1643 | 25 122 174 . 15 419 405 669 1643 . . . . 1528 762 1395 1332 819 717 1610 1125 Initial 844 | . 16 19 . . . 174 76 350 . . . . 63 748 51 780 532 286 371 844 Average 401 | 10 58 44 . 3 92 130 411 510 . . . . 631 493 384 976 758 469 1199 811 Maximum Alert Level 5 | . . . . . 2 2 2 5 . . . . 4 3 4 4 3 3 5 4 Low Security (%) 47 | 100 100 100 . 100 82 93 16 33 . . . . 21 12 53 . . . . . Level 1 11 | . . . . . 11 2 20 22 . . . . 11 5 22 . . 28 15 . Level 2 18 | . . . . . 6 3 63 17 . . . . 13 65 1 . 15 63 1 39 Level 3 15 | . . . . . . . . 11 . . . . 49 16 9 85 84 7 7 49 Level 4 5 | . . . . . . . . 11 . . . . 2 . 13 15 . . 57 11 Level 5 1 | . . . . . . . . 4 . . . . . . . . . . 17 . High Security . | . . . . . . . . . . . . . . . . . . . . . Max Security . | . . . . . . . . . . . . . . . . . . . . . Squads Dispatched 68 | . 3 1 . . 6 9 . 15 . . . . 12 5 6 . . 4 . 7 Investigation 19 | . 1 1 . . 2 5 . 3 . . . . 2 . 2 . . 1 . 2 Extermination 19 | . . . . . . 3 . 7 . . . . 4 4 . . . . . 1 Reinforcement 22 | . 2 . . . 1 1 . 4 . . . . 4 1 3 . . 3 . 3 Assault 5 | . . . . . . . . 1 . . . . 2 . 1 . . . . 1 Garrison 3 | . . . . . 3 . . . . . . . . . . . . . . . Intercept . | . . . . . . . . . . . . . . . . . . . . . Construction Impeded 3 | . . . . . . . . 1 . . . . 1 . . . . . . 1 Haulers Reinforced 5 | . . . . . . 1 . 1 . . . . 2 . . . . . . 1 Stealth | -11 -10 -10 -10 -9 -8 -7 -7 -7 -7 -7 -7 -6 -6 -5 -5 -5 -5 -5 -5 -4 --------- Run | Scr Mat Min Exi Min Mat Fac Gar Fac Low Low Zio Pro Fac Fac Ext Cet Arc Hub Gar Fac Distress Signals 23 | . 2 . . . 3 2 . 1 . . . . 4 . 3 1 1 2 . 4 Communications Jammed . | . . . . . . . . . . . . . . . . . . . . . Distress Signals . | . . . . . . . . . . . . . . . . . . . . . Times Spotted 441 | . 23 21 . . 31 31 8 51 8 8 . 10 57 13 57 19 19 9 23 53 Peak Tracking Total 13 | . 4 3 . . 6 4 7 6 7 4 . 9 8 3 9 5 2 5 11 13 Tactical Retreats 22 | . 1 6 . . 3 . . 2 1 . . . 1 . 2 1 . . 4 1 Traps | -11 -10 -10 -10 -9 -8 -7 -7 -7 -7 -7 -7 -6 -6 -5 -5 -5 -5 -5 -5 -4 ------- Run | Scr Mat Min Exi Min Mat Fac Gar Fac Low Low Zio Pro Fac Fac Ext Cet Arc Hub Gar Fac Traps Triggered 20 | . . . . . . 3 1 2 . . . . 2 . 3 . . 1 7 1 Indirectly 5 | . . . . . . . . . . . . . . . . . . . 5 . Trap Hack Attempts . | . . . . . . . . . . . . . . . . . . . . . Triggered . | . . . . . . . . . . . . . . . . . . . . . Disarmed . | . . . . . . . . . . . . . . . . . . . . . Reprogrammed . | . . . . . . . . . . . . . . . . . . . . . Reused . | . . . . . . . . . . . . . . . . . . . . . Traps Extracted . | . . . . . . . . . . . . . . . . . . . . . Installed . | . . . . . . . . . . . . . . . . . . . . . Triggered 2 | . . . . . . . . . 1 . . . . . . . . . 1 . Machines | -11 -10 -10 -10 -9 -8 -7 -7 -7 -7 -7 -7 -6 -6 -5 -5 -5 -5 -5 -5 -4 ---------- Run | Scr Mat Min Exi Min Mat Fac Gar Fac Low Low Zio Pro Fac Fac Ext Cet Arc Hub Gar Fac Machines Disabled 70 | . . 1 . 1 2 7 2 16 . . . 1 19 1 8 . 2 1 . 9 Max in Single Turn 8 | . . 1 . 1 1 7 2 6 . . . 1 8 1 1 . . 1 . 4 Garrison Access 5 | . . . . . 1 . . 2 . . . . 1 . . . . . . 1 Energy Cycler 1 | . . . . . . . . . . . . . . . 1 . . . . . Machines Sabotaged . | . . . . . . . . . . . . . . . . . . . . . Garrisons Compromised . | . . . . . . . . . . . . . . . . . . . . . Overloaded Fab Kills . | . . . . . . . . . . . . . . . . . . . . . Fab Network Shutdowns 2 | . . . . . . . . 1 . . . . 1 . . . . . . . Hacking | -11 -10 -10 -10 -9 -8 -7 -7 -7 -7 -7 -7 -6 -6 -5 -5 -5 -5 -5 -5 -4 --------- Run | Scr Mat Min Exi Min Mat Fac Gar Fac Low Low Zio Pro Fac Fac Ext Cet Arc Hub Gar Fac Machines Accessed 96 | . 9 2 2 . 8 12 . 21 . . 1 . 13 6 13 3 . 2 . 4 Terminals 58 | . 6 . . . 6 7 . 11 . . . . 7 2 12 3 . 1 . 3 Fabricators 9 | . . . . . . . . 5 . . . . 2 2 . . . . . . Repair Stations 3 | . 1 . . . . 1 . 1 . . . . . . . . . . . . Recycling Units 10 | . 2 . . . 1 1 . 1 . . . . 2 2 1 . . . . . Scanalyzers 4 | . . . . . . 2 . 1 . . . . 1 . . . . . . . Garrison Access 7 | . . . . . 1 1 . 2 . . . . 1 . . . . 1 . 1 Total Hacks 322 | . 29 2 2 . 25 43 . 60 . . 5 . 44 36 42 13 . 3 . 18 Successful 171 | . 19 2 2 . 15 20 . 30 . . 5 . 21 28 19 5 . 1 . 4 Failed 150 | . 9 . . . 10 23 . 30 . . . . 23 8 23 8 . 2 . 14 Catastrophic 32 | . . . . . 1 6 . 4 . . . . 5 . 8 4 . . . 4 Database Lockouts 1 | . 1 . . . . . . . . . . . . . . . . . . . Manual 174 | . 23 . 1 . 22 23 . 30 . . . . 27 10 18 4 . . . 16 Terminals 200 | . 20 . . . 18 26 . 29 . . . . 26 13 37 13 . 2 . 16 Fabricators 45 | . . . . . . . . 19 . . . . 8 18 . . . . . . Repair Stations 13 | . 4 . . . . 6 . 3 . . . . . . . . . . . . Recycling Units 30 | . 5 . . . 4 4 . 2 . . . . 5 5 5 . . . . . Scanalyzers 10 | . . . . . . 6 . 2 . . . . 2 . . . . . . . Garrison Access 15 | . . . . . 3 1 . 5 . . . . 3 . . . . 1 . 2 Terminal Hacks 67 | . 5 2 2 . 5 6 . 8 . . 5 . 4 8 16 5 . . . 1 Record 8 | . . . 1 . . . . . . . . . 1 1 . 5 . . . . Part Schematic 15 | . . . . . 1 2 . 2 . . 5 . 2 2 1 . . . . . Robot Analysis 6 | . 1 . . . 1 . . . . . . . . . 4 . . . . . Open Door 7 | . . 2 . . . . . . . . . . . . 5 . . . . . Level Access Points 1 | . 1 . . . . . . . . . . . . . . . . . . . Branch Access Points 5 | . 1 . . . 1 . . 1 . . . . . 1 1 . . . . . Terminal Index 5 | . 1 . . . 1 1 . 1 . . . . . . . . . . . 1 Fabricator Index 4 | . . . . . . 1 . 1 . . . . 1 1 . . . . . . Alert Level 1 | . . . . . . . . . . . . . . . 1 . . . . . Unreport Threat 7 | . . . . . 1 2 . 1 . . . . . 2 1 . . . . . Locate Traps 2 | . . . . . . . . . . . . . . 1 1 . . . . . Recall Investigation 1 | . . . . . . . . 1 . . . . . . . . . . . . Recall Extermination 1 | . . . . . . . . 1 . . . . . . . . . . . . Hauler Manifests 1 | . . . . . . . . . . . . . . . 1 . . . . . Zone Layout 2 | . 1 . . . . . . . . . . . . . 1 . . . . . EX-Prototype ID Bank 1 | . . . 1 . . . . . . . . . . . . . . . . . Fabricator Hacks 28 | . . . . . . . . 13 . . . . 3 12 . . . . . . Load Schematic 11 | . . . . . . . . 6 . . . . 1 4 . . . . . . Build 17 | . . . . . . . . 7 . . . . 2 8 . . . . . . Repair Station Hacks 9 | . 4 . . . . 4 . 1 . . . . . . . . . . . . Scan Component 5 | . 2 . . . . 2 . 1 . . . . . . . . . . . . Repair 4 | . 2 . . . . 2 . . . . . . . . . . . . . . Recycling Unit Hacks 8 | . 1 . . . 1 . . 2 . . . . 2 2 . . . . . . Process 1 | . . . . . . . . 1 . . . . . . . . . . . . Retrieve Matter 1 | . . . . . . . . 1 . . . . . . . . . . . . Retrieve Components 6 | . 1 . . . 1 . . . . . . . 2 2 . . . . . . Scanalyzer 9 | . . . . . . 6 . 2 . . . . 1 . . . . . . . Insert Component 5 | . . . . . . 3 . 1 . . . . 1 . . . . . . . Analyze 4 | . . . . . . 3 . 1 . . . . . . . . . . . . Garrison Access Hacks 4 | . . . . . . 1 . 1 . . . . . . . . . 1 . 1 Unlock Access 2 | . . . . . . 1 . . . . . . . . . . . 1 . . Seal Access 2 | . . . . . . . . 1 . . . . . . . . . . . 1 Unauthorized Hacks 46 | . 9 . . . 9 3 . 3 . . . . 11 6 3 . . . . 2 Terminals 24 | . 7 . . . 5 2 . . . . . . 5 1 2 . . . . 2 Track 1 | . . . . . . . . . . . . . . . 1 . . . . . Assimilate 7 | . 2 . . . 1 1 . . . . . . 2 . 1 . . . . . Botnet 15 | . 4 . . . 4 1 . . . . . . 3 1 . . . . . 2 Operators 1 | . 1 . . . . . . . . . . . . . . . . . . . Fabricators 6 | . . . . . . . . 2 . . . . 2 2 . . . . . . Siphon 5 | . . . . . . . . 2 . . . . 1 2 . . . . . . Haulers 1 | . . . . . . . . . . . . . 1 . . . . . . . Repair Stations . | . . . . . . . . . . . . . . . . . . . . . Recycling Units 12 | . 2 . . . 2 1 . . . . . . 3 3 1 . . . . . Reject 3 | . . . . . 1 . . . . . . . 1 1 . . . . . . Mask 9 | . 2 . . . 1 1 . . . . . . 2 2 1 . . . . . Scanalyzers . | . . . . . . . . . . . . . . . . . . . . . Garrison Access 4 | . . . . . 2 . . 1 . . . . 1 . . . . . . . Intercept 1 | . . . . . 1 . . . . . . . . . . . . . . . Jam 3 | . . . . . 1 . . 1 . . . . 1 . . . . . . . Data Cores Recovered 1 | . . . . . . . . . . . . . 1 . . . . . . . Used 1 | . . . . . . . . . . . . . 1 . . . . . . . Hacking Detections 74 | . 8 . . . 6 9 . 19 . . . . 11 6 10 1 . 2 . 2 Full Trace Events 13 | . 3 . . . 1 4 . 2 . . . . 1 . 1 . . . . 1 Feedback Events 3 | . 1 . . . . . . 1 . . . . . . . . . . . 1 Corruption 2 | . 1 . . . . . . . . . . . . . . . . . . 1 Hackware Fried 1 | . . . . . . . . 1 . . . . . . . . . . . . Feedback Blocked . | . . . . . . . . . . . . . . . . . . . . . Robot Schematics Acquired . | . . . . . . . . . . . . . . . . . . . . . Robots Built . | . . . . . . . . . . . . . . . . . . . . . Matter . | . . . . . . . . . . . . . . . . . . . . . Time . | . . . . . . . . . . . . . . . . . . . . . Total Robot Build Rating . | . . . . . . . . . . . . . . . . . . . . . Part Schematics Acquired 18 | . . . . . 1 4 . 3 . . 5 . 2 2 1 . . . . . Parts Built 17 | . . . . . . . . 9 . . . . 2 6 . . . . . . Matter 1772 | . . . . . . . . 833 . . . . 192 747 . . . . . . Time 814 | . . . . . . . . 456 . . . . 64 294 . . . . . . Total Part Build Rating 83 | . . . . . . . . 35 . . . . 16 32 . . . . . . Parts Repaired 4 | . 2 . . . . 2 . . . . . . . . . . . . . . Time 140 | . 52 . . . . 88 . . . . . . . . . . . . . . Parts Recycled . | . . . . . . . . . . . . . . . . . . . . . Recycled Matter 264 | . . . . . . . . 264 . . . . . . . . . . . . Retrieved Matter 332 | . . . . . . . . 332 . . . . . . . . . . . . Retrieved Components 13 | . 2 . . . 3 . . . . . . . 2 6 . . . . . . Parts Scanalyzed 3 | . . . . . . 2 . 1 . . . . . . . . . . . . Part Schematics Acquired 3 | . . . . . . 2 . 1 . . . . . . . . . . . . Parts Damaged . | . . . . . . . . . . . . . . . . . . . . . Bothacking | -11 -10 -10 -10 -9 -8 -7 -7 -7 -7 -7 -7 -6 -6 -5 -5 -5 -5 -5 -5 -4 ------------ Run | Scr Mat Min Exi Min Mat Fac Gar Fac Low Low Zio Pro Fac Fac Ext Cet Arc Hub Gar Fac Used RIF Installer . | . . . . . . . . . . . . . . . . . . . . . Robots Hacked . | . . . . . . . . . . . . . . . . . . . . . Non-combat . | . . . . . . . . . . . . . . . . . . . . . Combat . | . . . . . . . . . . . . . . . . . . . . . Robot Hacks Applied . | . . . . . . . . . . . . . . . . . . . . . Relay Couplers Released 9 | . . . . . . . . 4 . . . . 5 . . . . . . . Machine Destruction 2 | . . . . . . . . . . . . . 2 . . . . . . . Programmers 7 | . . . . . . . . 4 . . . . 3 . . . . . . . Robots Rewired 21 | . . . . . . . . . 2 . . 2 . . 17 . . . . . Allies Hacked . | . . . . . . . . . . . . . . . . . . . . . Hacks Repelled 1 | . . . . . . . . . . . . . 1 . . . . . . . Allies | -11 -10 -10 -10 -9 -8 -7 -7 -7 -7 -7 -7 -6 -6 -5 -5 -5 -5 -5 -5 -4 -------- Run | Scr Mat Min Exi Min Mat Fac Gar Fac Low Low Zio Pro Fac Fac Ext Cet Arc Hub Gar Fac Total Allies 45 | . 1 . . 3 1 1 . . 2 . 6 2 1 . 23 5 . . . . Largest Group 15 | . 1 . . 3 3 1 . . 2 . 6 6 4 . 15 6 6 5 5 4 Highest-Rated Group 626 | . 10 . . 40 40 10 . . 46 . 173 173 132 . 586 626 626 470 470 369 Highest-Rated Ally 156 | . 10 . . 16 16 10 . . 30 . 37 37 37 . 156 156 156 94 94 94 Total Orders 18 | . 2 . . . 2 . . . . . . . 8 1 1 . . . 2 2 STAY 9 | . 1 . . . 1 . . . . . . . 4 . 1 . . . 1 1 FOLLOW 7 | . 1 . . . 1 . . . . . . . 4 . . . . . 1 . RETURN 2 | . . . . . . . . . . . . . . 1 . . . . . 1 Ally Attacks 455 | . . . . . 29 . . . . . . 36 21 . 227 25 18 26 34 39 Total Damage 11199 | . . . . . 325 . . . . . . 535 955 . 4763 965 604 1005 865 1182 Kills 97 | . . . . . 3 . . . . . . 7 6 . 43 12 4 8 7 7 Allies Corrupted . | . . . . . . . . . . . . . . . . . . . . . Allies Melted . | . . . . . . . . . . . . . . . . . . . . . Intel | -11 -10 -10 -10 -9 -8 -7 -7 -7 -7 -7 -7 -6 -6 -5 -5 -5 -5 -5 -5 -4 ------- Run | Scr Mat Min Exi Min Mat Fac Gar Fac Low Low Zio Pro Fac Fac Ext Cet Arc Hub Gar Fac Robot Analysis Total 6 | . 1 . . . 1 . . . . . . . . . 4 . . . . . Derelict Logs Recovered 8 | . . 1 . 2 . . . . . 2 1 2 . . . . . . . . Drone Launches 18 | . . . . . . . . . . . . . . 1 . . . . . 17 Drone Recoveries 2 | . . . . . . . . . . . . . . 1 . . . . . 1 Exploration | -11 -10 -10 -10 -9 -8 -7 -7 -7 -7 -7 -7 -6 -6 -5 -5 -5 -5 -5 -5 -4 ------------- Run | Scr Mat Min Exi Min Mat Fac Gar Fac Low Low Zio Pro Fac Fac Ext Cet Arc Hub Gar Fac Turns Passed 35627 | 118 1841 1664 611 786 2347 2070 1525 5156 2435 1846 3441 1082 3326 2404 2155 560 366 404 646 844 Spaces Moved 14386 | 82 866 822 318 393 882 753 317 2044 707 704 1454 443 1252 1157 923 272 168 127 298 404 Core 135 | 65 . . . . . . 25 4 36 . . . . . 4 . . . . 1 Treads 14251 | 17 866 822 318 393 882 753 292 2040 671 704 1454 443 1252 1157 919 272 168 127 298 403 Legs . | . . . . . . . . . . . . . . . . . . . . . Wheels . | . . . . . . . . . . . . . . . . . . . . . Hover . | . . . . . . . . . . . . . . . . . . . . . Flight . | . . . . . . . . . . . . . . . . . . . . . Fastest Speed 50 | 50 160 180 160 200 200 217 230 197 230 230 230 230 190 165 160 160 160 180 180 160 Average Speed 213 | 72 175 180 184 200 213 223 389 227 327 230 230 230 204 180 187 162 170 180 180 168 Slowest Speed 2350 | 160 180 180 200 200 220 290 2350 2150 2150 230 230 230 230 190 2350 200 180 180 180 1750 Overloaded Moves . | . . . . . . . . . . . . . . . . . . . . . Propulsion Burnouts . | . . . . . . . . . . . . . . . . . . . . . Robots Hopped . | . . . . . . . . . . . . . . . . . . . . . Cave-ins Triggered . | . . . . . . . . . . . . . . . . . . . . . Exploration Rate (%) 59 | 4 99 99 69 94 46 24 45 45 70 82 87 62 38 28 87 68 83 15 58 36 Regions Visited 20 Branch Regions 11 Pre-discovered Areas 3 | . . . 1 1 . . . . . 1 . . . . . . . . . . Known Exits Taken 14 | . 1 . . . 1 1 . 1 1 1 1 1 1 1 1 1 1 1 . . Unknown Exits Taken 4 | 1 . 1 1 1 . . . . . . . . . . . . . . . . Scrap Searched 7 | . . 1 . 1 . . . . . 1 3 1 . . . . . . . . Spaces Dug 106 | . 3 4 . . 3 2 . 19 8 12 3 2 21 21 1 . . . . 7 Terrain Destroyed 722 | . 10 57 . 2 15 28 49 58 12 115 3 37 177 31 18 . . . 5 105 Melee 69 | . . . . . 1 2 . 19 1 12 3 2 16 7 . . . . . 6 Projectile 48 | . 3 . . . 2 . . . 11 . . . 5 24 1 . . . . 2 AOE 605 | . 7 57 . 2 12 26 49 39 . 103 . 35 156 . 17 . . . 5 97 Terrain Rammed . | . . . . . . . . . . . . . . . . . . . . . Walls Destroyed . | . . . . . . . . . . . . . . . . . . . . . Machines Disabled . | . . . . . . . . . . . . . . . . . . . . . Actions | -11 -10 -10 -10 -9 -8 -7 -7 -7 -7 -7 -7 -6 -6 -5 -5 -5 -5 -5 -5 -4 --------- Run | Scr Mat Min Exi Min Mat Fac Gar Fac Low Low Zio Pro Fac Fac Ext Cet Arc Hub Gar Fac Total 18169 | 111 1105 933 346 393 1227 1038 567 2399 775 869 1509 495 1872 1381 1325 396 230 299 383 516 Wait 1998 | 1 131 26 3 . 187 158 210 144 13 121 1 5 463 71 132 54 14 169 57 38 Move 14365 | 81 865 821 317 392 881 753 315 2043 706 703 1453 442 1251 1156 922 271 167 127 295 404 Hop . | . . . . . . . . . . . . . . . . . . . . . Pick Up 270 | 6 33 9 19 . 25 14 2 39 2 . 24 . 10 35 32 10 7 . . 3 Fast Attach 58 | 5 . 2 1 . 6 4 1 8 . . . 2 8 9 3 7 1 . . 1 Attach 58 | 2 1 1 2 . 5 3 1 9 1 . 2 . 5 4 3 1 2 . . 16 Detach 20 | . . . . . 2 1 1 4 1 . 1 . 1 1 3 3 2 . . . Swap 195 | . 9 8 . . 12 31 8 37 15 6 1 3 23 18 10 2 . . 1 11 Drop 202 | 1 18 14 4 . 23 18 2 23 1 . 2 2 15 22 33 17 4 . . 3 Fire 706 | 15 48 52 . 1 84 53 24 66 25 18 . 5 68 58 68 31 33 2 26 29 Melee 123 | . . . . . 1 3 1 21 7 21 25 3 23 7 . . . . . 11 Ram . | . . . . . . . . . . . . . . . . . . . . . Kick . | . . . . . . . . . . . . . . . . . . . . . Crush 12 | . . . . . 1 . . 5 . . . . 5 . . . . 1 . . Escape Stasis 12 | . . . . . . . 2 . . . . . . . 6 . . . 4 . Rewire 150 | . . . . . . . . . 4 . . 33 . . 113 . . . . . Trap . | . . . . . . . . . . . . . . . . . . . . . Miscellaneous . | . . . . . . . . . . . . . . . . . . . . . Route ------- -11/Scrapyard -10/Materials (discovered 4 exits: *Mat x3 / *Min) -10/Mines (discovered 3 exits: *Mat x2 / *Exi) -10/Exiles (discovered 2 exits: [*Min x2]) -9/Mines (discovered 2 exits: *Mat x2) -8/Materials (discovered 3 exits: *Fac x3) -7/Factory (discovered 2 exits: *Low / Gar) -7/Garrison (discovered 2 exits: *Fac x2) -7/Factory (discovered 4 exits: *Fac x2 / *Low x2) -7/Lower Caves -7/Lower Caves -7/Zion -6/Proximity Caves -6/Factory (discovered 2 exits: *Fac x2) -5/Factory (discovered 5 exits: *Fac / *Upp x2 / *Ext x2) -5/Extension (discovered 3 exits: *Fac x2 / *Cet) -5/Cetus (discovered 2 exits: *Fac / *Arc) -5/Archives (discovered 3 exits: *Fac / *Hub x2) -5/Hub_04(d) -5/Garrison (discovered 3 exits: *Fac x3) -4/Factory (discovered 4 exits: Res x4) History --------- Turn | Location | Event 15 | -11/Scrapyard | Discovered new exit (range 15) 119 | -11/Scrapyard | Entered Materials 179 | -10/Materials | Met 8R-AWN 254 | -10/Materials | Discovered new exit (range 8) 310 | -10/Materials | Build established: Mutant 709 | -10/Materials | Discovered new exit (range 16) 745 | -10/Materials | Build established: Hauler-Mutant 844 | -10/Materials | Central database locked down 1033 | -10/Materials | Repaired Lgt. Treads 1060 | -10/Materials | Repaired Lgt. Treads 1068 | -10/Materials | Discovered new exit (range 11) 1151 | -10/Materials | Identified exit to Mines 1151 | -10/Materials | Identified exit to Materials 1960 | -10/Materials | Entered Mines 1962 | -10/Mines | Followed 8R-AWN into the Mines 2055 | -10/Mines | Found the Drone Emporium 2066 | -10/Mines | Found Prototype Device 2188 | -10/Mines | Discovered exit to Materials (range 12) 2393 | -10/Mines | Core integrity fell below 50% 2431 | -10/Mines | Learned location of 1 exit from Materials 2468 | -10/Mines | Met a Derelict shopkeep closing up shop 2851 | -10/Mines | Discovered exit to Materials (range 7) 2954 | -10/Mines | Assembled infested the area 2959 | -10/Mines | Assisted by a Guerilla fighting off Assembled 3409 | -10/Mines | Received a Rocket Launcher from a helpful Derelict 3617 | -10/Mines | Discovered new exit (range 5) 3624 | -10/Mines | Entered Exiles 3651 | -10/Exiles | Discovered new exit (range 15) 3673 | -10/Exiles | Welcomed by 8R-AWN 3700 | -10/Exiles | Met EX-HEX 3781 | -10/Exiles | Met EX-DEC 3810 | -10/Exiles | Learned location of Zion (-7) 3840 | -10/Exiles | Met EX-BIN 3866 | -10/Exiles | Aligned with FarCom system 3867 | -10/Exiles | Given EX-Vault access code 3909 | -10/Exiles | Opened EX-Vault 3926 | -10/Exiles | Found Superbattery 3965 | -10/Exiles | Warned to stay clear of 0b10 Research branches 4214 | -10/Exiles | Discovered new exit (range 10) 4235 | -10/Exiles | Left Exiles lab with Superbattery 4235 | -10/Exiles | Entered Mines 4243 | -9/Mines | Assisted by bots powering up and referring to "LRC-V3" 4329 | -9/Mines | Discovered new exit (range 14) 4675 | -9/Mines | Learned Materials trap positions 4679 | -9/Mines | Discovered new exit (range 7) 4883 | -9/Mines | A weapon hastily lodged in a ceiling crevice suddenly fell to the ground 5021 | -9/Mines | Entered Materials 5021 | -8/Materials | Accompanied by 3 allies 5021 | -8/Materials | Evolved 4 slots: Utility x4 5022 | -8/Materials | Identified exit to Factory 5022 | -8/Materials | Identified Decoy Drone Bay 5023 | -8/Materials | Loaded intel: 6 trap records 6358 | -8/Materials | Discovered exit to Factory (range 10) 6805 | -8/Materials | Garrison activated, responded to threat 7224 | -8/Materials | Discovered exit to Factory (range 9) 7368 | -8/Materials | Entered Factory 7368 | -7/Factory | Evolved 2 slots: Utility x2 7733 | -7/Factory | Discovered new exit (range 15) 7836 | -7/Factory | Identified exit to Lower Caves 9288 | -7/Factory | Repaired Imp. Medium Armor Plating 9332 | -7/Factory | Repaired Imp. Shield Generator 9438 | -7/Factory | Identified exit to Garrison 9438 | -7/Factory | Entered Garrison 9684 | -7/Garrison | Triggered checkpoint 10690 | -7/Garrison | Discovered new exit (range 10) 10709 | -7/Garrison | Identified exit to Factory 10711 | -7/Garrison | Attempted to access garrison exit controls, blocked by remote lockdown 10811 | -7/Garrison | Triggered checkpoint 10944 | -7/Garrison | Discovered exit to Factory (range 9) 10963 | -7/Garrison | Entered Factory 12888 | -7/Factory | Fabricated System Shield? 13229 | -7/Factory | Hacking Suite fried by hacking feedback 13405 | -7/Factory | Fabricated Imp. System Shield? 13555 | -7/Factory | Discovered new exit (range 4) 13559 | -7/Factory | Identified exit to Factory 13568 | -7/Factory | Build established: Hacker-Mutant 14776 | -7/Factory | Discovered exit to Factory (range 9) 14789 | -7/Factory | Fabricated Flak Gun? 14825 | -7/Factory | Lost 3 parts (2n1w) 14965 | -7/Factory | Fabricated Flak Gun? 15111 | -7/Factory | Fabricated Adv. Signal Interpreter (x2) 15215 | -7/Factory | Fabricated Imp. System Shield? 15329 | -7/Factory | Local fabrication network quarantined 15763 | -7/Factory | First assault squad dispatched 16119 | -7/Factory | Entered Lower Caves 16730 | -7/Lower Caves | Build established: Hauler-Mutant 17924 | -7/Lower Caves | Encountered a Warlord checkpoint 17983 | -7/Lower Caves | Attracted the attention of an 0b10 outpost 18025 | -7/Lower Caves | Spotted B-75 Beast 18363 | -7/Lower Caves | Destroyed B-75 Beast 18492 | -7/Lower Caves | Discovered new exit (range 8) 18506 | -7/Lower Caves | Identified exit to Lower Caves 18554 | -7/Lower Caves | Entered another Lower Caves area 18775 | -7/Lower Caves | Spotted B-75 Beast 19963 | -7/Lower Caves | Learned Factory terminal intel 20281 | -7/Lower Caves | Discovered new exit (range 7) 20398 | -7/Lower Caves | Identified exit to Zion 20400 | -7/Lower Caves | Entered Zion 20483 | -7/Zion | Discovered new exit (range 16) 20608 | -7/Zion | Given the Hacking Drone Bay 20609 | -7/Zion | Found Prototype Device 20653 | -7/Zion | Identified exit to Proximity Caves 20816 | -7/Zion | Received a visual enhancement algorithm 20869 | -7/Zion | System corruption cleaned by Quarantine Array 20936 | -7/Zion | Loaded intel: 6 derelict terminal locations 20947 | -7/Zion | Given A8's code to call for help 21581 | -7/Zion | Visited the Megawrench Repair Shop 21804 | -7/Zion | Rebuked by Imprinter 22911 | -7/Zion | Megawrench repaired 9 parts 23399 | -7/Zion | Gained Derelict followers 23617 | -7/Zion | Gained Derelict followers 23841 | -7/Zion | Entered Proximity Caves 23841 | -6/Proximity Caves | Accompanied by 6 allies 23930 | -6/Proximity Caves | Learned Factory stockpile data 24228 | -6/Proximity Caves | Learned Factory terminal intel 24407 | -6/Proximity Caves | Attracted the attention of an 0b10 outpost 24823 | -6/Proximity Caves | Attracted the attention of an 0b10 checkpoint 24894 | -6/Proximity Caves | Discovered exit to Factory (range 12) 24923 | -6/Proximity Caves | Entered Factory 24923 | -6/Factory | Accompanied by 4 allies 24923 | -6/Factory | Evolved 2 slots: Propulsion x2 24925 | -6/Factory | Loaded intel: 19 terminal locations 25289 | -6/Factory | Build established: Hacker-Mutant 25729 | -6/Factory | Identified Hacking Drone Bay 26031 | -6/Factory | Local fabrication network quarantined 26092 | -6/Factory | Fabricated Arm. Heavy Treads (x2) 26323 | -6/Factory | First assault squad dispatched 26800 | -6/Factory | Discovered new exit (range 11) 27686 | -6/Factory | Discovered new exit (range 15) 27738 | -6/Factory | Identified exit to Factory 28194 | -6/Factory | Destroyed 8 combat bots 28249 | -6/Factory | Entered another Factory area 28249 | -5/Factory | Evolved 2 slots: Utility x2 28250 | -5/Factory | Loaded intel: 20 terminal locations 28468 | -5/Factory | Fabricated Hacking Suite? 28537 | -5/Factory | Fabricated Hacking Suite (x1) 28607 | -5/Factory | Fabricated HERF Cannon (x1) 28654 | -5/Factory | Fabricated Humpback (x1) 28663 | -5/Factory | Fabricated Enh. Quantum Rifle? 29039 | -5/Factory | Found Quantum Capacitor 29084 | -5/Factory | Discovered new exit (range 5) 29091 | -5/Factory | Identified exit to Upper Caves 29236 | -5/Factory | Discovered new exit (range 13) 29713 | -5/Factory | Found Prototype Launcher 29713 | -5/Factory | Identified Mni. Smartbomb Launcher 29928 | -5/Factory | Lost 3 parts (1p2w) 30201 | -5/Factory | Identified exit to Extension 30239 | -5/Factory | Spotted B-75 Beast 30653 | -5/Factory | Entered Extension 30743 | -5/Extension | Disrupted transfer network 31499 | -5/Extension | Rescued a captive Derelict 31500 | -5/Extension | Rescued a captive Derelict 31531 | -5/Extension | Rescued a captive Derelict 31532 | -5/Extension | Rescued a captive Derelict 31549 | -5/Extension | Rescued a captive Derelict 31708 | -5/Extension | Build established: Commander-Mutant 31992 | -5/Extension | Spotted B-75 Beast 31993 | -5/Extension | Allies destroyed B-75 Beast 32004 | -5/Extension | Spotted B-75 Beast 32008 | -5/Extension | Allies destroyed B-75 Beast 32106 | -5/Extension | Discovered new exit (range 3) 32107 | -5/Extension | Identified exit to Factory 32286 | -5/Extension | Rescued A7 32487 | -5/Extension | Identified exit to Cetus 32515 | -5/Extension | Energy Cycler disabled 32523 | -5/Extension | Rescued a captive Derelict 32606 | -5/Extension | Discovered exit to Factory (range 10) 32753 | -5/Extension | First assault squad dispatched 32808 | -5/Extension | Entered Cetus 32808 | -5/Cetus | Accompanied by 1 ally (A7) 32813 | -5/Cetus | Acquired a Cetus Manufacturing Module code from A7 32830 | -5/Cetus | Spotted Cetus Guard 32830 | -5/Cetus | Spotted Cetus Guard 32836 | -5/Cetus | Destroyed Cetus Guard 32836 | -5/Cetus | Spotted Cetus Guard 32839 | -5/Cetus | Allies destroyed Cetus Guard 32839 | -5/Cetus | Spotted Cetus Guard 32840 | -5/Cetus | Destroyed Cetus Guard 32843 | -5/Cetus | Destroyed Cetus Guard 33018 | -5/Cetus | Discovered exit to Factory (range 15) 33155 | -5/Cetus | Build established: Hauler-Mutant 33158 | -5/Cetus | Started Cetus Manufacturing Module 33183 | -5/Cetus | Manufactured an Enhanced Grunt 33208 | -5/Cetus | Manufactured an Enhanced Grunt 33233 | -5/Cetus | Manufactured an Enhanced Grunt 33258 | -5/Cetus | Manufactured an Enhanced Grunt 33283 | -5/Cetus | Manufactured an Enhanced Grunt 33343 | -5/Cetus | Discovered new exit (range 16) 33365 | -5/Cetus | Identified exit to Archives 33368 | -5/Cetus | Entered Archives 33368 | -5/Archives | Accompanied by 6 allies (A7) 33472 | -5/Archives | Discovered new exit (range 16) 33516 | -5/Archives | Discovered exit to Factory (range 16) 33710 | -5/Archives | Discovered new exit (range 14) 33731 | -5/Archives | Identified exit to Hub_04(d) 33734 | -5/Archives | Entered Hub_04(d) 33734 | -5/Hub_04(d) | Accompanied by 5 allies 34134 | -5/Hub_04(d) | Identified exit to Garrison 34138 | -5/Hub_04(d) | Entered Garrison 34138 | -5/Garrison | Accompanied by 5 allies 34236 | -5/Garrison | Triggered checkpoint 34236 | -5/Garrison | Triggered checkpoint 34272 | -5/Garrison | Destroyed 9 combat bots 34415 | -5/Garrison | Discovered exit to Factory (range 8) 34453 | -5/Garrison | Attempted to access garrison exit controls, blocked by remote lockdown 34532 | -5/Garrison | Triggered checkpoint 34601 | -5/Garrison | Discovered exit to Factory (range 12) 34621 | -5/Garrison | Attempted to access garrison exit controls, blocked by remote lockdown 34766 | -5/Garrison | Discovered exit to Factory (range 11) 34784 | -5/Garrison | Entered Factory 34784 | -4/Factory | Accompanied by 4 allies 34784 | -4/Factory | Evolved 2 slots: Power x1, Utility x1 34884 | -4/Factory | Identified exit to Research 35312 | -4/Factory | Found Prototype Slashing Weapon 35521 | -4/Factory | Lost 4 parts (2u2w) 35534 | -4/Factory | First assault squad dispatched 35619 | -4/Factory | Core integrity fell below 50% 35625 | -4/Factory | Core integrity fell below 20% 35628 | -4/Factory | Destroyed by G-67 Veteran with Electrolaser Last Messages --------------- 35614_ Adv. System Shield destroyed. 35614_ Slug penetrates Terminal. 35614_ Penetrated by Slug. 35616_ K-01 Serf collects debris. 35617_ G-67 Veteran destroyed. 35617_ Phasing Sabre destroyed. 35618_ Imp. System Shield destroyed. 35618_ Slug penetrates Wall. 35619_ K-01 Serf collects debris. 35619_ Penetrated by Slug. 35621_ Slug penetrates Terminal. 35621_ Slug penetrates Wall. 35622_ Penetrated by Slug. 35622_ K-01 Serf collects debris. 35624_ R-10 Processor collects Flexi-carbon Leg. 35624_ Penetrated by Slug. 35624_ Adv. Field Recycling Unit destroyed. 35624_ Slug penetrates Wall. 35624_ Penetrated by Slug. 35625_ K-01 Serf collects debris. Map ----- +----------------------------------------------------+ | #???????????????????????????????????????????? | | " !#???????????????????????????????????????????? | | " #???????????????????????????????????????????? | | " #???????????????????????????????????????????? | | #???????????????????????????????????????????? | | ####???????????????????????????????????????????? | | #????????????????????????????????????????????? | | #????????????????????????????????????????????? | | #????????????????????????????????????????????? | | #????????????????????????????????????????????? | | #????????????????????????????????????????????? | | #????????????????????????????????????????????? | | #????????????????????????????????????????????? | | #????????????????????????????????????????????? | | ##???????????????????????????????????????????? | | ##??????????????????????????????????????????? | | ##?????????????????????????????????????????? | | #?????????????????????????????????????????? | | #########################??????????????????? | | ? ?????????????????? | | ?????????????????? | | [ g g ?????????????????? | | #######################???????????????????? | | #############"##### g #?Y?? #?????????????? | | # [!= # ggkgY# #?????????????? | | # * h#h" @ g ??????? | | # """" """" ;R # ##????????????? | | # """" """ # " g #??? #?????????????? | | # """" """" """" # #???????????????????? | | + """" """" """" ########???????????????????? | | #? ?? #??????????????????????????? | | #? ?? #??????????????????????????? | | #?###??#############??????????????????????????? | | #?????????????????????????????????????????????? | | +?????????????????????????????????????????????? | | #?????????????????????????????????????????????? | | #?????????????????????????????????????????????? | | #?????????????????????????????????????Y???????? | | #?????????????????????????????????????????????? | | #?????????????????????????????????????????????? | | #?????????????????????????????????????????????? | | #?????????????????????????????????????????????? | | #?????????????????????????????????????????????? | | #?????????????????????????????????????????????? | | +?????????????????????????????????????????????? | | #?????????????????????????????????????????????? | | #?????????????????????????????????????????????? | | #?????????????????????????????????????????????? | | #?????????????????????????????????????????????? | | #?????????????????????????????????????????????? | +----------------------------------------------------+ Best States ------------- Heat Dissipation 74 Energy Generation 45 Energy Capacity 2350 Matter Stores 300 Matter Capacity 300 Sight Range 16 Robot Scan Range 16 Terrain Scan Density 10 Jamming Range 12 Cloak Strength 2 Armor Coverage 1650 Utility Shielding 33 Weapon Cycling 15 Evasion (%) 50 Recoil Reduction 4 Energy Filtering 50 Particle Charging 20 Offensive Hacking 30 Defensive Hacking 50 Item Schematics ----------------- Hcp. Storage Unit | -8/Materials | Hacked Hacking Suite | -7/Factory | Scanalyzed Humpback | -7/Factory | Scanalyzed System Shield | -7/Factory | Hacked Adv. Signal Interpreter | -7/Factory | Hacked Flak Gun | -7/Factory | Scanalyzed Imp. System Shield | -7/Factory | Hacked Adv. Terrain Scan Processor | -7/Factory | Hacked Riot Gun | -7/Zion | Free Hvy. Riot Gun | -7/Zion | Free Battle Rifle | -7/Zion | Free Flamer | -7/Zion | Free Ripper | -7/Zion | Free HERF Cannon | -6/Factory | Hacked Impulse Thruster | -6/Factory | Hacked Imp. Hacking Suite | -5/Factory | Hacked Field Propulsion Drive | -5/Factory | Hacked Adv. Hacking Suite | -5/Extension | Hacked Robot Schematics ------------------ None Fabricated ------------ System Shield | x1 | -7/Factory Imp. System Shield | x1 | -7/Factory Flak Gun | x2 | -7/Factory Flak Gun | x2 | -7/Factory Adv. Signal Interpreter | x2 | -7/Factory Imp. System Shield | x1 | -7/Factory Arm. Heavy Treads | x2 | -6/Factory | Preloaded Hacking Suite | x1 | -5/Factory Hacking Suite | x1 | -5/Factory HERF Cannon | x1 | -5/Factory Humpback | x1 | -5/Factory Enh. Quantum Rifle | x2 | -5/Factory | Preloaded Alien Tech Used ----------------- None Achievements -------------- None Challenges ------------ None Game ------ Seed SigixParticleProjector Manual? 0 Play Time 04:02:30 Cumulative 277.3 hours Start 2021.02.04 @ 09:33:47 End 2021.02.04 @ 16:03:21 Sessions 5 Manual Loads 0 Difficulty Rogue Special Mode None Game No. 238 Rogue 238 Adventurer 0 Explorer 0 Win Type - Total 1 Types 0/0/0/1/0/0/0/0/0 Lore% 64 Gallery% 74 Achievement% 57 Wizard Run 0 Options --------- ASCII 0 Keyboard 1 Movement Numpad Keybinds 0 Fullscreen 1 Font 12/Terminus Map View 83x54 Tactical HUD 1 Map Filters NONE Filters NONE Steam 1 RUN: f59533d2-d6cb-4f3a-bbd6-8f8647bd9964